[Event "IV Estrellas 2022"]
[Site "La Palma"]
[Date "2022.08.08"]
[Round "4.9"]
[White "Martinez Duany, Lelys Stanley"]
[Black "Lopez Pereyra, Antonio"]
[Result "1-0"]
[ECO "B20"]
[WhiteElo "2497"]
[BlackElo "1989"]
[Annotator "TA"]
[PlyCount "105"]
[EventDate "2022.08.06"]
[EventType "swiss"]
[EventCountry "ESP"]
[SourceTitle "playchess.com"]
[Source "ChessBase"]
[SourceQuality "1"]
[TimeControl "5400+30"]

{[%evp 9,105,-35,-27,-42,0,-11,14,8,6,-11,0,0,6,22,18,18,47,43,53,25,98,79,76,54,66,66,66,70,60,47,150,138,195,226,226,210,216,221,225,209,213,215,209,216,224,210,269,14,12,26,24,0,0,0,122,33,490,235,234,235,221,214,369,356,479,375,425,385,539,347,440,304,895,707,903,886,839,787,1175,816,1837,1838,1820,1812,2669,1662,12835,12835,12838,12838,12837,12836,12840,12841,12849,12849,12850,12848]} 1. e4 {[%emt 0:00:03]} c5 {[%emt 0:01:19]} 2. Ne2 {[%emt 0:00:16]} Nc6 {[%emt 0:00:44]} 3. g3 {[%emt 0:00:16]} d5 {[%emt 0:03:02]} 4. Bg2 {[%emt 0:00:17]} dxe4 {[%emt 0:01:47]} 5. Bxe4 {[%emt 0:00:11]} Nf6 {[%emt 0:00:06]} 6. Bg2 {[%emt 0:00:06] B20: Sicilian: Unusual White 2nd moves.} Bg4 {[%emt 0:01:09] next ...Nd4 is good for Black.} 7. h3 {[%emt 0:00:19]} Bh5 {[%emt 0:00:19]} 8. d3 {[%emt 0:00:35] The position is equal.} e6 {[%emt 0:04:21]} 9. Nbc3 {[%emt 0:00:10]} Be7 {[%emt 0:04:01]} 10. Be3 {[%emt 0:00:17]} O-O {[%emt 0:01:20] [#]} 11. g4 $146 {[%emt 0:00:48]} ({Predecessor:} 11. O-O Qd7 12. g4 Bg6 13. f4 Nd4 14. Ng3 h6 15. Qd2 Rad8 16. Qf2 b6 17. Rae1 {0-1 (32) Bartel,M (2316)-Gritsak,O (2516) Warsaw 2013}) 11... Bg6 {[%emt 0:00:07]} 12. Nf4 {[%emt 0:00:07]} Nd7 {[%emt 0:07:09]} 13. Nxg6 {[%emt 0:04:48]} hxg6 {[%emt 0:00:18]} 14. h4 {[%emt 0:01:58][%cal Bh3h4,Bh4h5][%mdl 32]} Bf6 {[%emt 0:12:18]} (14... Qb6 $11 {remains equal.}) 15. g5 {[%emt 0:00:51]} Bd4 {[%emt 0:00:45]} 16. h5 {[%emt 0:02:35] Black must now prevent hxg6.} Bxe3 {[%emt 0:00:31]} 17. fxe3 {[%emt 0:00:07]} Qxg5 {[%emt 0:00:12]} 18. Qe2 {[%emt 0:00:21] Hoping for Bxc6.} Qg3+ {[%emt 0:06:44]} 19. Kd2 {[%emt 0:00:06] Bxc6 is the strong threat.} c4 {[%emt 0:00:01]} (19... g5 $14) 20. d4 {[%emt 0:10:30] aiming for Bxc6.} Qg5 {[%emt 0:16:19]} (20... g5 $16 {might work better.}) 21. Bxc6 $18 {[%emt 0:04:15]} bxc6 {[%emt 0:00:01]} 22. Rag1 {[%emt 0:01:27]} (22. Qxc4 gxh5 23. Rag1 Qf5 $11) 22... Qf5 {[%emt 0:00:31]} 23. hxg6 {[%emt 0:00:23]} (23. Qxc4 gxh5 24. Rf1 Qg5 $11) 23... fxg6 {[%emt 0:00:43]} 24. Rf1 {[%emt 0:00:35] Prevents Qf2.} (24. Qxc4 $6 c5 $16) 24... Qg5 {[%emt 0:04:22]} 25. Qh2 $40 {[%emt 0:00:23][%csl Gh1][%cal Rh2h7][%mdl 128] White attacks with force.} (25. Qxc4 $6 Qg2+ 26. Kc1 Rxf1+ 27. Rxf1 Re8 $16) 25... Nf6 {[%emt 0:02:43] [#] Inhibits Qh7+.} 26. Rxf6 $1 {[%emt 0:05:01][%mdl 576] Decoy} Rxf6 {[%emt 0:07:26]} 27. Ne4 $1 {[%emt 0:00:21][%csl LRf6,LRg5]} (27. Qh8+ $2 Kf7 28. Qxa8 Qg2+ 29. Ne2 Qxh1 $19) 27... Qa5+ {[%emt 0:05:49]} 28. c3 $2 {[%emt 0:00:11] The board is on fire.} (28. Kc1 $1 $18 Qh5 29. Qxh5 (29. Nxf6+ gxf6 30. Qxh5 gxh5 $16) 29... gxh5 30. Nxf6+ gxf6 31. Rxh5) 28... Qh5 $11 {[%emt 0:00:14] Inhibits Qh8+.} 29. Nxf6+ {[%emt 0:06:01]} gxf6 {[%emt 0:00:01][%mdl 4096] Endgame KQR-KQR} 30. Qg2 {[%emt 0:01:37]} Qf5 {[%emt 0:02:25]} 31. Kc1 {[%emt 0:00:54]} Rd8 {[%emt 0:08:50] [#]} (31... Rf8 $11) 32. b3 {[%emt 0:04:16]} ({Don't play} 32. Qxc6 $6 Qd5 33. Qxd5 exd5 $11) (32. Qh2 Qh5 $14) (32. a4 $1 $16) 32... c5 $2 {[%emt 0:06:29][%mdl 8192] A mistake that costs the game.} (32... e5 $14) 33. Qh2 {[%emt 0:08:36]} (33. Rh6 $142 cxb3 34. Rxg6+ Kh7 35. Rg7+ Kh8 36. Rxa7 Qc2+ 37. Qxc2 bxc2 38. dxc5) 33... Qh5 $18 {[%emt 0:00:02]} 34. Qxh5 {[%emt 0:00:11]} gxh5 {[%emt 0:00:00]} 35. dxc5 {[%emt 0:00:07]} ({Not} 35. bxc4 Rc8 $14) ({Less strong is} 35. Rxh5 cxd4 36. exd4 cxb3 $14) 35... cxb3 $2 {[%emt 0:00:14]} (35... Rd5 {was called for.}) 36. axb3 {[%emt 0:00:06][%cal Ba2b3,Bb3b4,Bb4b5][%mdl 32] KR-KR} Rd5 {[%emt 0:00:28] [#]} 37. b4 {[%emt 0:00:11]} Kf7 {[%emt 0:01:22]} 38. Kc2 {[%emt 0:01:26]} Kg6 {[%emt 0:02:34]} 39. e4 {[%emt 0:00:52]} Rd7 {[%emt 0:00:47]} 40. Rg1+ {[%emt 0:00:34]} Kh6 $2 {[%emt 0:00:42]} (40... Kf7 41. Rh1 Kg6) 41. c6 {[%emt 0:00:09] White is clearly winning.} Rc7 {[%emt 0:00:50]} 42. b5 {[%emt 0:00:06]} h4 {[%emt 0:00:34]} 43. Kd3 {[%emt 0:00:18]} f5 {[%emt 0:00:51]} 44. Ke3 {[%emt 0:01:14] Threatens to win with exf5.} Kh5 {[%emt 0:00:53]} 45. exf5 {[%emt 0:01:40]} exf5 {[%emt 0:00:01]} 46. Kf4 {[%emt 0:00:09]} h3 {[%emt 0:01:09]} 47. Rg8 {[%emt 0:00:14] Strongly threatening Rh8+.} Kh6 {[%emt 0:00:52]} 48. Rh8+ {[%emt 0:00:16]} Kg7 {[%emt 0:00:29]} 49. Rxh3 {[%emt 0:00:07]} Kg6 {[%emt 0:00:23]} 50. c4 {[%emt 0:00:36]} Re7 {[%emt 0:00:02]} 51. Re3 {[%emt 0:00:12]} Rxe3 {[%emt 0:00:37]} 52. Kxe3 {[%emt 0:00:09] White wants to mate with Kf4.} Kf6 {[%emt 0:00:05]} 53. c7 {[%emt 0:49:42] Weighted Error Value: White=0.43/Black=0.64} 1-0

[Event "IV Estrellas 2022"]
[Site "La Palma"]
[Date "2022.08.08"]
[Round "4.10"]
[White "Diaz Perez, Michel Alejandro"]
[Black "Antic, Dejan"]
[Result "1-0"]
[ECO "A47"]
[WhiteElo "2433"]
[BlackElo "2452"]
[Annotator "RC"]
[PlyCount "78"]
[EventDate "2022.08.06"]
[EventType "swiss"]
[EventCountry "ESP"]
[SourceTitle "playchess.com"]
[Source "ChessBase"]
[SourceQuality "1"]
[TimeControl "5400+30"]

1. d4 {[%emt 0:00:20]} Nf6 {[%emt 0:00:38]} 2. Bf4 {[%emt 0:00:17]} e6 {[%emt 0:01:04]} 3. e3 {[%emt 0:00:20]} c5 {[%emt 0:00:31]} 4. c3 {[%emt 0:00:20]} cxd4 {[%emt 0:00:22]} 5. exd4 {[%emt 0:00:05]} b6 {[%emt 0:00:27]} 6. Nf3 {[%emt 0:00:19]} Bb7 {[%emt 0:00:23]} 7. h3 {[%emt 0:01:07]} Be7 {[%emt 0:00:21]} 8. Nbd2 {[%emt 0:00:13]} O-O {[%emt 0:00:51]} 9. Bd3 {[%emt 0:00:53]} d6 {[%emt 0:00:36]} 10. O-O {[%emt 0:00:09]} Nbd7 {[%emt 0:00:13]} 11. a4 {[%emt 0:01:11]} a6 {[%emt 0:00:19]} 12. Re1 {[%emt 0:01:23]} Re8 {[%emt 0:00:50]} 13. Bh2 {[%emt 0:05:24]} Bf8 {[%emt 0:01:44]} 14. Nc4 {[%emt 0:01:10]} Qc7 {[%emt 0:00:36]} 15. Ne3 {[%emt 0:04:06]} Rad8 {[%emt 0:11:24]} 16. Qe2 {[%emt 0:06:11]} Qc8 {[%emt 0:04:21]} 17. Nc4 {[%emt 0:13:59]} Qb8 {[%emt 0:05:18]} 18. Rad1 {[%emt 0:12:18]} Bc6 {[%emt 0:07:45]} 19. b3 {[%emt 0:03:32]} Bb7 {[%emt 0:10:36]} 20. Ncd2 {[%emt 0:22:37]} Qa8 {[%emt 0:02:45]} 21. Bb1 {[%emt 0:06:53]} g6 {[%emt 0:02:38]} 22. c4 {[%emt 0:00:26]} d5 {[%emt 0:03:01]} 23. Qd3 {[%emt 0:06:04]} Bb4 {[%emt 0:04:08]} 24. Re3 {[%emt 0:02:25]} dxc4 {[%emt 0:01:35]} 25. bxc4 {[%emt 0:01:10]} Bc6 {[%emt 0:07:58]} 26. Qb3 {[%emt 0:01:18]} a5 {[%emt 0:01:01]} 27. Bd3 {[%emt 0:03:21]} Qb7 {[%emt 0:05:22]} 28. Bf1 {[%emt 0:00:28]} Ne4 {[%emt 0:05:16]} 29. Nxe4 {[%emt 0:01:40]} Bxe4 {[%emt 0:00:08]} 30. Ng5 {[%emt 0:00:45]} Bc6 {[%emt 0:06:16]} 31. d5 {[%emt 0:00:32]} Nc5 {[%emt 0:00:16]} 32. dxc6 {[%emt 0:00:26]} Qe7 {[%emt 0:00:47]} 33. Qc2 {[%emt 0:02:52]} Qxg5 {[%emt 0:00:14]} 34. Be2 {[%emt 0:01:54]} Rxd1+ {[%emt 0:02:30]} 35. Qxd1 {[%emt 0:00:08]} Rd8 {[%emt 0:02:08]} 36. c7 {[%emt 0:00:43]} Rc8 {[%emt 0:02:13]} 37. Bf3 {[%emt 0:00:17]} Qe7 {[%emt 0:00:42]} 38. Qd4 {[%emt 0:01:26]} Nxa4 {[%emt 0:01:23]} 39. Rd3 {[%emt 0:00:32]} Nc5 {[%emt 0:11:20]} 1-0

[Event "IV Estrellas 2022"]
[Site "La Palma"]
[Date "2022.08.08"]
[Round "4.11"]
[White "Ramirez Maillo, Cristian"]
[Black "Acosta Sosa, Juan Manuel"]
[Result "1/2-1/2"]
[ECO "B22"]
[WhiteElo "1896"]
[BlackElo "2310"]
[Annotator "RC"]
[PlyCount "78"]
[EventDate "2022.08.06"]
[EventType "swiss"]
[EventCountry "ESP"]
[SourceTitle "playchess.com"]
[Source "ChessBase"]
[SourceQuality "1"]
[TimeControl "5400+30"]

1. e4 {[%emt 0:00:03]} c5 {[%emt 0:00:11]} 2. c3 {[%emt 0:00:17]} d5 {[%emt 0:00:07]} 3. exd5 {[%emt 0:00:09]} Qxd5 {[%emt 0:00:06]} 4. d4 {[%emt 0:00:09]} Nc6 {[%emt 0:00:05]} 5. Nf3 {[%emt 0:00:07]} Bf5 {[%emt 0:00:07]} 6. Be3 {[%emt 0:01:18]} Nf6 {[%emt 0:00:33]} 7. Na3 {[%emt 0:00:48]} e6 {[%emt 0:02:42]} 8. Bc4 {[%emt 0:02:54]} Qd7 {[%emt 0:07:23]} 9. Bb5 {[%emt 0:04:02]} Ng4 {[%emt 0:01:23]} 10. Qa4 {[%emt 0:04:36]} a6 {[%emt 0:29:02]} 11. O-O-O {[%emt 0:15:17]} Qc8 {[%emt 0:01:53]} 12. Bxc6+ {[%emt 0:07:21]} Qxc6 {[%emt 0:00:33]} 13. Qxc6+ {[%emt 0:00:39]} bxc6 {[%emt 0:00:02]} 14. Nc4 {[%emt 0:01:15]} Nxe3 {[%emt 0:02:31]} 15. Nxe3 {[%emt 0:02:24]} Be4 {[%emt 0:03:14]} 16. Ng5 {[%emt 0:04:15]} Bg6 {[%emt 0:01:17]} 17. h4 {[%emt 0:01:05]} cxd4 {[%emt 0:06:31]} 18. Rxd4 {[%emt 0:04:05]} c5 {[%emt 0:04:28]} 19. Ra4 {[%emt 0:06:32]} Be7 {[%emt 0:00:52]} 20. Rd1 {[%emt 0:00:38]} Ra7 {[%emt 0:05:15]} 21. Nc4 {[%emt 0:04:29]} O-O {[%emt 0:04:27]} 22. Ne5 {[%emt 0:02:48]} Rc8 {[%emt 0:00:05]} 23. Nxg6 {[%emt 0:07:47]} hxg6 {[%emt 0:00:03]} 24. Ne4 {[%emt 0:00:46]} Rc6 {[%emt 0:01:32]} 25. g3 {[%emt 0:03:48]} Kf8 {[%emt 0:00:05]} 26. Nd2 {[%emt 0:00:53]} Bf6 {[%emt 0:03:18]} 27. Nc4 {[%emt 0:01:26]} Ke7 {[%emt 0:00:19]} 28. Na5 {[%emt 0:04:25]} Rd6 {[%emt 0:00:13]} 29. Nb3 {[%emt 0:01:25]} Rc6 {[%emt 0:00:42]} 30. Na5 {[%emt 0:01:12]} Rc8 {[%emt 0:00:05]} 31. Kc2 {[%emt 0:02:28]} Rac7 {[%emt 0:02:26]} 32. Nc4 {[%emt 0:03:00]} Rc6 {[%emt 0:00:06]} 33. Na5 {[%emt 0:00:15]} R6c7 {[%emt 0:00:06]} 34. Nc4 {[%emt 0:00:27]} Rc6 {[%emt 0:05:36]} 35. Na5 {[%emt 0:00:28]} Rb6 {[%emt 0:02:28]} 36. Nc4 {[%emt 0:00:26]} Rbc6 {[%emt 0:00:22]} 37. Ra5 {[%emt 0:15:03]} R8c7 38. Ra4 {[%emt 0:00:30]} Rd7 {[%emt 0:19:22]} 39. Na5 Rdc7 1/2-1/2

[Event "IV Estrellas 2022"]
[Site "La Palma"]
[Date "2022.08.08"]
[Round "4.12"]
[White "Brito Garcia, Alfredo"]
[Black "Marin Dorta, Alejandro"]
[Result "1-0"]
[ECO "A43"]
[WhiteElo "2291"]
[BlackElo "1869"]
[Annotator "RC"]
[PlyCount "65"]
[EventDate "2022.08.06"]
[EventType "swiss"]
[EventCountry "ESP"]
[SourceTitle "playchess.com"]
[Source "ChessBase"]
[SourceQuality "1"]
[TimeControl "5400+30"]

1. d4 {[%emt 0:00:30]} c5 {[%emt 0:00:30]} 2. d5 {[%emt 0:01:57]} g6 {[%emt 0:00:09]} 3. e4 {[%emt 0:01:05]} Bg7 {[%emt 0:00:12]} 4. Nc3 {[%emt 0:00:06]} d6 {[%emt 0:00:19]} 5. Nf3 {[%emt 0:00:09]} Nf6 {[%emt 0:00:09]} 6. Bb5+ {[%emt 0:00:06]} Bd7 {[%emt 0:02:55]} 7. a4 {[%emt 0:00:27]} O-O {[%emt 0:00:10]} 8. O-O {[%emt 0:01:32]} Bxb5 {[%emt 0:00:32]} 9. axb5 {[%emt 0:00:06]} Nbd7 {[%emt 0:00:10]} 10. h3 {[%emt 0:00:08]} Ne8 {[%emt 0:01:22]} 11. Bf4 {[%emt 0:01:58]} Nc7 {[%emt 0:02:03]} 12. Qe2 {[%emt 0:00:51]} Nb6 {[%emt 0:04:36]} 13. Rfd1 {[%emt 0:07:08]} Qd7 {[%emt 0:05:01]} 14. e5 {[%emt 0:06:59]} Rfd8 {[%emt 0:05:28]} 15. Bg3 {[%emt 0:03:51]} Qf5 {[%emt 0:10:19]} 16. Bh4 {[%emt 0:11:51]} Re8 {[%emt 0:09:53]} 17. g4 {[%emt 0:07:22]} Qd7 {[%emt 0:05:03]} 18. Bg3 {[%emt 0:01:19]} a6 {[%emt 0:07:34]} 19. bxa6 {[%emt 0:03:58]} Rxa6 {[%emt 0:01:59]} 20. Rxa6 {[%emt 0:01:34]} bxa6 {[%emt 0:00:10]} 21. Qe4 {[%emt 0:02:56]} dxe5 {[%emt 0:09:42]} 22. Nxe5 {[%emt 0:04:25]} Qc8 {[%emt 0:06:08]} 23. Na4 {[%emt 0:16:11]} Nxa4 {[%emt 0:07:33]} 24. Qxa4 {[%emt 0:00:54]} Nb5 {[%emt 0:00:54]} 25. c3 {[%emt 0:01:01]} h5 {[%emt 0:01:53]} 26. Re1 {[%emt 0:01:58]} hxg4 {[%emt 0:02:36]} 27. hxg4 {[%emt 0:02:55]} e6 {[%emt 0:06:03]} 28. d6 {[%emt 0:02:27]} Nxd6 {[%emt 0:04:09]} 29. Nxg6 {[%emt 0:00:43]} Nb5 {[%emt 0:00:19]} 30. Nf4 {[%emt 0:00:34]} Rd8 {[%emt 0:01:06]} 31. Nh5 {[%emt 0:01:30]} Qc6 {[%emt 0:01:55]} 32. Qf4 {[%emt 0:00:48]} Rd5 {[%emt 0:03:05]} 33. Nxg7 {[%emt 0:02:21]} 1-0

[Event "IV Estrellas 2022"]
[Site "La Palma"]
[Date "2022.08.08"]
[Round "4.13"]
[White "Estremera Panos, Sergio"]
[Black "Gil Jimenez, Ruben"]
[Result "1-0"]
[ECO "A44"]
[WhiteElo "2262"]
[BlackElo "1675"]
[Annotator "RC"]
[PlyCount "39"]
[EventDate "2022.08.06"]
[EventType "swiss"]
[EventCountry "ESP"]
[SourceTitle "playchess.com"]
[Source "ChessBase"]
[SourceQuality "1"]
[TimeControl "5400+30"]

1. d4 {[%emt 0:00:10]} c5 {[%emt 0:00:04]} 2. d5 {[%emt 0:00:20]} e5 {[%emt 0:00:05]} 3. e4 {[%emt 0:00:22]} d6 {[%emt 0:00:03]} 4. Nc3 {[%emt 0:00:15]} g6 {[%emt 0:00:36]} 5. h4 {[%emt 0:02:23]} Nf6 {[%emt 0:02:06]} 6. Bb5+ {[%emt 0:05:39]} Bd7 {[%emt 0:02:40]} 7. a4 {[%emt 0:00:10]} Qa5 {[%emt 0:15:03]} 8. Bd2 {[%emt 0:06:04]} Na6 {[%emt 0:04:13]} 9. Qf3 {[%emt 0:12:32]} Be7 {[%emt 0:05:53]} 10. Bxd7+ {[%emt 0:11:03]} Nxd7 {[%emt 0:06:34]} 11. h5 {[%emt 0:08:17]} g5 {[%emt 0:05:49]} 12. Nge2 {[%emt 0:04:11]} f6 {[%emt 0:03:14]} 13. O-O {[%emt 0:03:33]} O-O-O {[%emt 0:09:28]} 14. Ng3 {[%emt 0:00:58]} Rhg8 {[%emt 0:04:38]} 15. Nf5 {[%emt 0:03:03]} Rde8 {[%emt 0:01:17]} 16. Qe2 {[%emt 0:00:26]} Qb6 {[%emt 0:00:38]} 17. Nb5 {[%emt 0:02:04]} Ndb8 {[%emt 0:10:29]} 18. a5 {[%emt 0:00:51]} Qd8 {[%emt 0:00:41]} 19. Nxa7+ {[%emt 0:01:30]} Kd7 {[%emt 0:00:37]} 20. Qg4 {[%emt 0:01:33]} 1-0

[Event "IV Estrellas 2022"]
[Site "La Palma"]
[Date "2022.08.08"]
[Round "4.14"]
[White "Perogio, Lorenzo"]
[Black "Capote Robayna, Nathaniel"]
[Result "0-1"]
[ECO "A15"]
[WhiteElo "1890"]
[BlackElo "2150"]
[Annotator "RC"]
[PlyCount "81"]
[EventDate "2022.08.06"]
[EventType "swiss"]
[EventCountry "ESP"]
[SourceTitle "playchess.com"]
[Source "ChessBase"]
[SourceQuality "1"]
[TimeControl "5400+30"]

1. Nf3 {[%emt 0:00:06]} Nf6 {[%emt 0:00:17]} 2. g3 {[%emt 0:00:14]} g6 {[%emt 0:00:11]} 3. b3 {[%emt 0:00:26]} Bg7 {[%emt 0:00:14]} 4. Bb2 {[%emt 0:00:06]} O-O {[%emt 0:00:13]} 5. Bg2 {[%emt 0:00:14]} d6 {[%emt 0:00:10]} 6. O-O {[%emt 0:00:28]} e5 {[%emt 0:00:52]} 7. d3 {[%emt 0:00:20]} Nc6 {[%emt 0:01:01]} 8. c4 {[%emt 0:01:49]} a6 {[%emt 0:01:19]} 9. Nbd2 {[%emt 0:01:09]} Rb8 {[%emt 0:01:24]} 10. Qc2 {[%emt 0:07:44]} Re8 {[%emt 0:00:52]} 11. a3 {[%emt 0:00:37]} d5 {[%emt 0:10:28]} 12. cxd5 {[%emt 0:12:40]} Nxd5 {[%emt 0:01:00]} 13. e4 {[%emt 0:01:16]} Nb6 {[%emt 0:12:30]} 14. Nc4 {[%emt 0:01:34]} Nd7 {[%emt 0:00:24]} 15. Rad1 {[%emt 0:01:26]} Nf8 {[%emt 0:00:53]} 16. Ne3 {[%emt 0:06:49]} Be6 {[%emt 0:09:47]} 17. Nd5 {[%emt 0:06:58]} Rc8 {[%emt 0:00:31]} 18. b4 {[%emt 0:08:32]} Bg4 {[%emt 0:09:01]} 19. h3 {[%emt 0:00:37]} Bxf3 {[%emt 0:00:07]} 20. Bxf3 {[%emt 0:47:25]} h5 {[%emt 0:49:16]} 21. h4 {[%emt 0:00:00]} Ne6 {[%emt 0:00:00]} 22. Bg2 {[%emt 0:00:00]} Ncd4 {[%emt 0:00:00]} 23. Qb1 {[%emt 0:00:00]} c6 {[%emt 0:00:00]} 24. Ne3 {[%emt 0:00:00]} a5 {[%emt 0:00:00]} 25. Nc2 {[%emt 0:00:00]} axb4 {[%emt 0:00:00]} 26. Nxd4 {[%emt 0:00:00]} exd4 {[%emt 0:00:00]} 27. axb4 {[%emt 0:00:00]} Qb6 {[%emt 0:00:00]} 28. Bc1 {[%emt 0:00:00]} Ra8 {[%emt 0:00:00]} 29. Bd2 {[%emt 0:00:00]} Ra3 {[%emt 0:00:00]} 30. Bh3 {[%emt 0:00:00]} Nc7 {[%emt 0:00:00]} 31. Bf4 {[%emt 0:00:00]} Nb5 {[%emt 0:00:00]} 32. Qb2 {[%emt 0:00:00]} Bf8 {[%emt 0:00:00]} 33. g4 {[%emt 0:00:00]} hxg4 {[%emt 0:00:00]} 34. Bxg4 {[%emt 0:00:00]} Ra4 {[%emt 0:00:00]} 35. h5 {[%emt 0:00:00]} Rxb4 {[%emt 0:00:00]} 36. Qd2 {[%emt 0:00:00]} Nc3 {[%emt 0:00:00]} 37. hxg6 {[%emt 0:00:00]} fxg6 {[%emt 0:00:00]} 38. Bh6 {[%emt 0:00:00]} Qd8 {[%emt 0:00:00]} 39. Bxf8 {[%emt 0:00:00]} Qh4 {[%emt 0:09:30]} 40. Qh6 {[%emt 0:10:00]} Qxg4+ {[%emt 0:00:30]} 41. Kh1 {[%emt 0:00:30]} 0-1

[Event "IV Estrellas 2022"]
[Site "La Palma"]
[Date "2022.08.08"]
[Round "4.15"]
[White "Perez Bolanos, David"]
[Black "Gil Jimenez, David"]
[Result "1-0"]
[ECO "C00"]
[WhiteElo "2041"]
[BlackElo "1871"]
[Annotator "NA RC"]
[PlyCount "61"]
[EventDate "2022.08.06"]
[EventType "swiss"]
[EventCountry "ESP"]
[SourceTitle "playchess.com"]
[Source "ChessBase"]
[SourceQuality "1"]
[TimeControl "5400+30"]

1. e4 {[%emt 0:00:03]} e6 {[%emt 0:00:22]} 2. Qe2 {[%emt 0:00:23]} c5 {[%emt 0:03:09]} 3. Nf3 {[%emt 0:00:26]} Nc6 {[%emt 0:00:44]} 4. c3 {[%emt 0:00:10]} Nf6 {[%emt 0:04:25]} 5. g3 {[%emt 0:00:56]} Be7 {[%emt 0:02:05]} 6. Bg2 {[%emt 0:00:25]} d5 {[%emt 0:01:56]} 7. d3 {[%emt 0:00:26]} O-O {[%emt 0:00:45]} 8. O-O {[%emt 0:00:09]} Re8 {[%emt 0:02:29]} 9. e5 {[%emt 0:01:53]} Nd7 {[%emt 0:00:29]} 10. Re1 {[%emt 0:01:25]} Rb8 {[%emt 0:03:15]} 11. h4 {[%emt 0:02:47]} f6 {[%emt 0:16:39]} 12. d4 {[%emt 0:09:58]} cxd4 {[%emt 0:01:28]} 13. cxd4 {[%emt 0:00:51]} fxe5 {[%emt 0:01:39]} 14. dxe5 {[%emt 0:01:43]} Nf8 {[%emt 0:17:32]} 15. Nbd2 {[%emt 0:16:38]} b6 {[%emt 0:02:09]} 16. Nb3 {[%emt 0:02:34]} Nb4 {[%emt 0:02:18]} 17. Bg5 {[%emt 0:11:48]} Ba6 {[%emt 0:09:03]} 18. Qd2 {[%emt 0:02:14]} Rc8 {[%emt 0:05:43]} 19. Nbd4 {[%emt 0:03:38]} Nc6 {[%emt 0:01:53]} 20. Nxc6 {[%emt 0:10:09]} Rxc6 {[%emt 0:00:12]} 21. Rac1 {[%emt 0:03:04]} Rxc1 {[%emt 0:05:15]} 22. Rxc1 {[%emt 0:00:39]} Bxg5 {[%emt 0:04:40]} 23. hxg5 {[%emt 0:02:26]} Ng6 {[%emt 0:04:00]} 24. Bh3 {[%emt 0:01:47]} Qd7 {[%emt 0:04:42]} 25. Nd4 {[%emt 0:02:53]} Nxe5 {[%emt 0:02:29]} 26. Re1 {[%emt 0:05:17]} Qd6 {[%emt 0:00:55]} 27. Qf4 {[%emt 0:01:52]} Nc4 {[%emt 0:01:18]} 28. Qxd6 {[%emt 0:02:36]} Nxd6 {[%emt 0:00:08]} 29. Rxe6 {[%emt 0:00:11]} Rd8 {[%emt 0:01:37]} 30. Nc6 {[%emt 0:00:46]} Rd7 {[%emt 0:00:36]} 31. Nb8 {[%emt 0:00:07]} 1-0

[Event "IV Estrellas 2022"]
[Site "La Palma"]
[Date "2022.08.08"]
[Round "4.16"]
[White "Guerrero Orihuela, Jose Luis"]
[Black "Amador Garcia, Ismael"]
[Result "0-1"]
[ECO "A45"]
[WhiteElo "1858"]
[BlackElo "2128"]
[Annotator "RC"]
[PlyCount "74"]
[EventDate "2022.08.06"]
[EventType "swiss"]
[EventCountry "ESP"]
[SourceTitle "playchess.com"]
[Source "ChessBase"]
[SourceQuality "1"]
[TimeControl "5400+30"]

1. d4 {[%emt 0:00:33]} Nf6 {[%emt 0:00:02]} 2. Bg5 {[%emt 0:00:12]} c5 {[%emt 0:00:04]} 3. Bxf6 {[%emt 0:00:24]} gxf6 {[%emt 0:00:05]} 4. c3 {[%emt 0:00:32]} Qb6 {[%emt 0:02:11]} 5. Qd2 {[%emt 0:00:39]} d5 {[%emt 0:02:56]} 6. Nf3 {[%emt 0:05:01]} Nc6 {[%emt 0:00:57]} 7. e3 {[%emt 0:03:42]} Bh6 {[%emt 0:01:00]} 8. dxc5 {[%emt 0:05:06]} Qxc5 {[%emt 0:00:45]} 9. b4 {[%emt 0:00:17]} Qd6 {[%emt 0:00:17]} 10. Bb5 {[%emt 0:01:49]} Bg4 {[%emt 0:16:34]} 11. Na3 {[%emt 0:13:15]} O-O {[%emt 0:04:46]} 12. Bxc6 {[%emt 0:10:10]} bxc6 {[%emt 0:00:46]} 13. c4 {[%emt 0:00:57]} a5 {[%emt 0:04:49]} 14. c5 {[%emt 0:21:58]} Qd7 {[%emt 0:04:04]} 15. Nc2 {[%emt 0:06:40]} axb4 {[%emt 0:02:45]} 16. Nxb4 {[%emt 0:01:18]} e5 {[%emt 0:00:04]} 17. O-O {[%emt 0:01:26]} Kh8 {[%emt 0:03:23]} 18. Ne1 {[%emt 0:03:19]} d4 {[%emt 0:13:18]} 19. Nec2 {[%emt 0:00:35]} d3 {[%emt 0:02:57]} 20. Qxd3 {[%emt 0:03:41]} Qxd3 {[%emt 0:00:11]} 21. Nxd3 {[%emt 0:00:02]} Be2 {[%emt 0:00:15]} 22. Ndb4 {[%emt 0:00:02]} Bxf1 {[%emt 0:00:08]} 23. Kxf1 {[%emt 0:00:02]} Rfc8 {[%emt 0:02:58]} 24. e4 {[%emt 0:01:56]} Bf8 {[%emt 0:00:28]} 25. Nd3 {[%emt 0:19:24]} Ra5 {[%emt 0:00:23]} 26. a4 Bxc5 {[%emt 0:37:24]} 27. Nxc5 {[%emt 0:00:00]} Rxc5 {[%emt 0:00:30]} 28. Ne3 {[%emt 0:01:30]} Ra8 {[%emt 0:00:30]} 29. Rd1 {[%emt 0:00:00]} Rca5 {[%emt 0:00:00]} 30. Rd6 {[%emt 0:00:00]} Rxa4 {[%emt 0:00:00]} 31. Rxc6 {[%emt 0:00:00]} Rxe4 {[%emt 0:00:00]} 32. Rxf6 {[%emt 0:00:00]} Kg7 {[%emt 0:00:00]} 33. Rf5 {[%emt 0:00:00]} Kg6 {[%emt 0:00:00]} 34. g4 {[%emt 0:00:00]} Ra1+ {[%emt 0:00:00]} 35. Kg2 {[%emt 0:00:00]} Rxg4+ {[%emt 0:00:00]} 36. Kf3 {[%emt 0:00:00]} Rg5 {[%emt 0:00:00]} 37. Rxg5+ {[%emt 0:00:00]} Kxg5 {[%emt 0:00:00]} 0-1